{"text_format":"1","workbook":"xlsx","n_sheets":8,"sheets":["A. Antrag","B. Finanz-Übersicht","C.1. Planung Ausgaben","C.2. Planung Einnahmen","D.1. Finanzen-Ist Total","D.2. Finanzen-Ist Kasse","Tabellen-Interna","E.1 Sub-FüBuCos"],"not_rendered":{"charts":0,"images":0,"macros":1,"external_links":0,"defined_names":17,"comments":5,"pivot_tables":0},"unopened":[],"bounds":{"document_bytes":16777216,"sheet_cells":100000,"rows_first":2000,"rows_last":500,"rows_between":2000,"halvings":0,"cell_chars":16384,"cell_head_chars":4096},"cells_cut":0,"cells_raw":0,"read":"whole","date_system":"1900"}

{"sheet":"A. Antrag","index":0,"n_rows":52,"n_cols":27,"rows_kept":52,"cut":false,"hidden":false,"merged":[[52,2,52,14],[52,16,52,29],[1,0,1,29],[2,0,3,29],[8,16,8,29],[10,16,10,29],[12,16,12,29],[14,16,14,29],[16,16,17,29],[29,2,33,29],[36,2,38,29],[41,2,43,29],[8,0,17,14]]}
["Vorlage entwickelt vom Einbecker KulturBüro / Open Source / Weiterentwicklung: templates@kultur-im-team.de"]
["Antrag auf Projektförderung"]
[]
[]
[]
[null,null,null,null,null,null,null,null,null,null,null,null,null,null,null,null,"1. Angaben zum/zur Antragsteller/in"]
[null,null,null,null,null,null,null,null,null,null,null,null,null,null,null,null,"1.1 Kontaktdaten"]
["An: ",null,null,null,null,null,null,null,null,null,null,null,null,null,null,null,"Name der Institution / Initiative:"]
[null,null,null,null,null,null,null,null,null,null,null,null,null,null,null,null,"Konzert- und Kulturfreunde Einbeck e.V. "]
[null,null,null,null,null,null,null,null,null,null,null,null,null,null,null,null,"Straße:"]
[null,null,null,null,null,null,null,null,null,null,null,null,null,null,null,null,"Lange Brücke 1"]
[null,null,null,null,null,null,null,null,null,null,null,null,null,null,null,null,"PLZ/Ort: "]
[null,null,null,null,null,null,null,null,null,null,null,null,null,null,null,null,"37574 Einbeck"]
[null,null,null,null,null,null,null,null,null,null,null,null,null,null,null,null,"Ansprechpartner / Funktion: "]
[null,null,null,null,null,null,null,null,null,null,null,null,null,null,null,null,"Martin Keil / Organisator "]
[null,null,null,null,null,null,null,null,null,null,null,null,null,null,null,null,"Telefon / eMail / Website / facebook: "]
[]
[]
[]
[]
["1.2",null,"ggf. Satzung des Projektträgers",null,null,null,null,null,null,null,null,null,null,null,null,null,null,null,null,null,"liegt vor",null,null,null,null,null,"ist beigefügt"]
[]
["1.3",null,"Informationen zu bisherigen Arbeiten und Projekten",null,null,null,null,null,null,null,null,null,null,null,null,null,null,null,null,null,"liegt vor",null,null,null,null,null,"ist beigefügt"]
[null,null,"des Antragstellers / der Antragstellerin"]
[]
["1.4",null,"ggf. Bescheinigung der Gemeinnützigkeit des Vereins",null,null,null,null,null,null,null,null,null,null,null,null,null,null,null,null,null,"liegt vor",null,null,null,null,null,"ist beigefügt"]
[]
["2. ",null,"Genaue Beschreibung des Projektes"]
["2.1",null,"Arbeitstitel des Projektes"]
[]
[]
[]
[]
[]
[]
["2.2",null,"Beschreibung des Projektes und der Projektziele"]
[null,null,"z.B. Projektart, Zielgruppen(n) des Projektes, Kooperationspartner, Projektzeitraum, Projektteilnehmer, Projektbeteuer, Förderschwerpunkte usw. \nDie genaue Beschreibung ist dem Antrag als Anlage 2.2 beigefügt."]
[]
[]
[]
["3. ",null,"Finanzübersicht / Budget",null,null,null,null,null,null,null,null,null,null,null,null,null,null,null,null,null,null,null,null,null,null,null,"ist beigefügt"]
[null,null,"Das Projektbudget mit detaillierten Angaben über die Ausgaben und Einnahmen ist diesem Förderantrag beigefügt. Hierzu haben wir das Formular \"Finanplan zum vorgestellten Projekt\" verwendet. "]
[]
[]
["4.",null,"Erklärung"]
[null,null,"Der / Die Antragsteller/in erklärt, dass"]
[null,null,"·","keine weiteren Förderanträge, als im Finanzplan angegeben, gestellt worden sind."]
[null,null,"·","Änderungen des Finanzplans umgehend kommuniziert werden. "]
[null,null,"·","Die Förderrichtlinien und -kriterien der jeweilig adressierten Förderinstitution vorliegen und für die "]
[null,null,null,"Projektarbeit Anwendung finden. "]
[]
[null,null,"Ort, Datum",null,null,null,null,null,null,null,null,null,null,null,null,null,"Verbindliche Unterschrift Antragsteller"]

{"sheet":"B. Finanz-Übersicht","index":1,"n_rows":63,"n_cols":51,"rows_kept":63,"cut":false,"hidden":false,"merged":[[22,35,22,37],[23,35,23,37],[24,35,24,37],[25,35,25,37],[26,35,26,37],[62,30,62,34],[47,30,50,34],[53,30,56,34],[58,30,59,34],[22,30,22,34],[23,30,23,34],[24,30,24,34],[25,30,25,34],[26,30,26,34],[27,30,27,34],[29,35,32,37],[35,35,38,37],[41,35,44,37],[47,35,50,37],[53,35,56,37],[60,35,60,37],[58,35,59,37],[29,30,32,34],[27,35,27,37],[41,25,44,29],[35,30,38,34],[41,30,44,34],[35,25,38,29],[58,25,59,29],[47,25,50,29],[53,25,56,29],[58,1,59,21],[58,22,59,24],[35,1,35,21],[36,1,36,21],[41,1,41,21],[42,1,42,21],[47,1,47,21],[38,10,38,11],[38,3,38,4],[48,1,48,21],[53,1,53,21],[54,1,54,21],[24,25,24,29],[25,25,25,29],[29,1,29,21],[30,1,30,21],[38,17,38,18],[60,25,60,29],[60,30,60,34],[35,22,38,24],[24,22,24,24],[25,1,25,21],[25,22,25,24],[26,25,26,29],[27,25,27,29],[32,1,32,2],[32,3,32,4],[32,10,32,11],[32,17,32,18],[29,25,32,29],[29,22,32,24],[26,1,26,21],[26,22,26,24],[27,1,27,21],[27,22,27,24],[24,1,24,21],[7,30,7,34],[22,25,22,29],[15,25,15,29],[16,25,16,29],[17,25,17,29],[15,1,15,24],[16,1,16,24],[17,1,17,24],[20,22,21,24],[20,25,21,29],[22,1,22,21],[22,22,22,24],[13,30,13,34],[14,30,14,34],[15,30,15,34],[16,30,16,34],[17,30,17,34],[8,30,8,34],[9,30,9,34],[10,30,10,34],[11,30,11,34],[12,30,12,34],[12,25,12,29],[13,25,13,29],[1,0,1,29],[2,0,4,29],[8,25,8,29],[9,25,9,29],[10,25,10,29],[8,1,8,24],[9,1,9,24],[10,1,10,24],[11,25,11,29],[21,30,21,34],[18,30,18,34],[8,35,8,37],[9,35,9,37],[10,35,10,37],[11,35,11,37],[12,35,12,37],[13,35,13,37],[14,35,14,37],[15,35,15,37],[16,35,16,37],[17,35,17,37],[18,35,18,37],[14,25,14,29],[13,1,13,24],[14,1,14,24],[11,1,11,24],[12,1,12,24],[18,25,18,29],[18,0,18,24],[23,22,23,24],[23,1,23,21],[23,25,23,29],[64,1,65,24],[60,1,60,24],[29,0,32,0],[35,0,38,0],[41,0,44,0],[41,22,44,24],[44,1,44,2],[44,3,44,4],[44,10,44,11],[44,17,44,18],[47,0,50,0],[47,22,50,24],[50,1,50,2],[50,3,50,4],[50,10,50,11],[50,17,50,18],[56,10,56,11],[56,17,56,18],[58,0,59,0],[38,1,38,2],[53,0,56,0],[53,22,56,24],[56,1,56,2],[56,3,56,4]]}
["Vorlage entwickelt vom Einbecker KulturBüro / Open Source / Weiterentwicklung: templates@kultur-im-team.de"]
["3. Finanzübersicht zum vorgestellten Projekt: "]
[{"$f":"'A. Antrag'!A3:AD4","v":0}]
[]
[]
["Wenn Antragsteller nach § 15 Ust.gesetz vorsteuerabzugsberechtigt, dann bitte ausschließlich Nettobeträge angeben. "]
[]
["3.1 ","Ausgaben / Kostenkategorie",null,null,null,null,null,null,null,null,null,null,null,null,null,null,null,null,null,null,null,null,null,null,null,null,null,null,null,"alle Beträge in Euro","Ist-Ausgaben",null,null,null,null,"Ist-Einnahmen"]
["a.","Verwaltungsaufwand Trägerverein",null,null,null,null,null,null,null,null,null,null,null,null,null,null,null,null,null,null,null,null,null,null,null,{"$f":"SUMIF('C.1. Planung Ausgaben'!$C$5:$C$19,'B. Finanz-Übersicht'!B9,'C.1. Planung Ausgaben'!$H$5:$H$19)+SUM(Z10:AD18)*AP9","v":0},null,null,null,null,{"$f":"SUMIF('D.1. Finanzen-Ist Total'!$I$5:$I$29,'B. Finanz-Übersicht'!B9,'D.1. Finanzen-Ist Total'!$E$5:$E$29)+SUMIF('D.2. Finanzen-Ist Kasse'!$H$6:$H$29,B9,'D.2. Finanzen-Ist Kasse'!$D$6:$D$29)","v":0},null,null,null,null,{"$f":"SUMIF('D.1. Finanzen-Ist Total'!$I$5:$I$29,'B. Finanz-Übersicht'!B9,'D.1. Finanzen-Ist Total'!$G$5:$G$29)+SUMIF('D.2. Finanzen-Ist Kasse'!$H$6:$H$29,B9,'D.2. Finanzen-Ist Kasse'!$E$6:$E$29)","v":0},null,null,null,null,"Gemeinskostenzuschlag:",0.2]
["b.","Projektleitung",null,null,null,null,null,null,null,null,null,null,null,null,null,null,null,null,null,null,null,null,null,null,null,{"$f":"SUMIF('C.1. Planung Ausgaben'!$C$5:$C$19,'B. Finanz-Übersicht'!B10,'C.1. Planung Ausgaben'!$H$5:$H$19)","v":0},null,null,null,null,{"$f":"SUMIF('D.1. Finanzen-Ist Total'!$I$5:$I$29,'B. Finanz-Übersicht'!B10,'D.1. Finanzen-Ist Total'!$E$5:$E$29)+SUMIF('D.2. Finanzen-Ist Kasse'!$H$6:$H$29,B10,'D.2. Finanzen-Ist Kasse'!$D$6:$D$29)","v":0},null,null,null,null,{"$f":"SUMIF('D.1. Finanzen-Ist Total'!$I$5:$I$29,'B. Finanz-Übersicht'!B10,'D.1. Finanzen-Ist Total'!$G$5:$G$29)+SUMIF('D.2. Finanzen-Ist Kasse'!$H$6:$H$29,B10,'D.2. Finanzen-Ist Kasse'!$E$6:$E$29)","v":0}]
["c.","Ehrenamtspauschalen",null,null,null,null,null,null,null,null,null,null,null,null,null,null,null,null,null,null,null,null,null,null,null,{"$f":"SUMIF('C.1. Planung Ausgaben'!$C$5:$C$19,'B. Finanz-Übersicht'!B11,'C.1. Planung Ausgaben'!$H$5:$H$19)","v":0},null,null,null,null,{"$f":"SUMIF('D.1. Finanzen-Ist Total'!$I$5:$I$29,'B. Finanz-Übersicht'!B11,'D.1. Finanzen-Ist Total'!$E$5:$E$29)+SUMIF('D.2. Finanzen-Ist Kasse'!$H$6:$H$29,B11,'D.2. Finanzen-Ist Kasse'!$D$6:$D$29)","v":0},null,null,null,null,{"$f":"SUMIF('D.1. Finanzen-Ist Total'!$I$5:$I$29,'B. Finanz-Übersicht'!B11,'D.1. Finanzen-Ist Total'!$G$5:$G$29)+SUMIF('D.2. Finanzen-Ist Kasse'!$H$6:$H$29,B11,'D.2. Finanzen-Ist Kasse'!$E$6:$E$29)","v":0}]
["d.","sonstige Dienstleistungen",null,null,null,null,null,null,null,null,null,null,null,null,null,null,null,null,null,null,null,null,null,null,null,{"$f":"SUMIF('C.1. Planung Ausgaben'!$C$5:$C$19,'B. Finanz-Übersicht'!B12,'C.1. Planung Ausgaben'!$H$5:$H$19)","v":0},null,null,null,null,{"$f":"SUMIF('D.1. Finanzen-Ist Total'!$I$5:$I$29,'B. Finanz-Übersicht'!B12,'D.1. Finanzen-Ist Total'!$E$5:$E$29)+SUMIF('D.2. Finanzen-Ist Kasse'!$H$6:$H$29,B12,'D.2. Finanzen-Ist Kasse'!$D$6:$D$29)","v":0},null,null,null,null,{"$f":"SUMIF('D.1. Finanzen-Ist Total'!$I$5:$I$29,'B. Finanz-Übersicht'!B12,'D.1. Finanzen-Ist Total'!$G$5:$G$29)+SUMIF('D.2. Finanzen-Ist Kasse'!$H$6:$H$29,B12,'D.2. Finanzen-Ist Kasse'!$E$6:$E$29)","v":0}]
["e.","Materialkosten (Verbrauch)",null,null,null,null,null,null,null,null,null,null,null,null,null,null,null,null,null,null,null,null,null,null,null,{"$f":"SUMIF('C.1. Planung Ausgaben'!$C$5:$C$19,'B. Finanz-Übersicht'!B13,'C.1. Planung Ausgaben'!$H$5:$H$19)","v":0},null,null,null,null,{"$f":"SUMIF('D.1. Finanzen-Ist Total'!$I$5:$I$29,'B. Finanz-Übersicht'!B13,'D.1. Finanzen-Ist Total'!$E$5:$E$29)+SUMIF('D.2. Finanzen-Ist Kasse'!$H$6:$H$29,B13,'D.2. Finanzen-Ist Kasse'!$D$6:$D$29)","v":0},null,null,null,null,{"$f":"SUMIF('D.1. Finanzen-Ist Total'!$I$5:$I$29,'B. Finanz-Übersicht'!B13,'D.1. Finanzen-Ist Total'!$G$5:$G$29)+SUMIF('D.2. Finanzen-Ist Kasse'!$H$6:$H$29,B13,'D.2. Finanzen-Ist Kasse'!$E$6:$E$29)","v":0}]
["f.","Catering",null,null,null,null,null,null,null,null,null,null,null,null,null,null,null,null,null,null,null,null,null,null,null,{"$f":"SUMIF('C.1. Planung Ausgaben'!$C$5:$C$19,'B. Finanz-Übersicht'!B14,'C.1. Planung Ausgaben'!$H$5:$H$19)","v":0},null,null,null,null,{"$f":"SUMIF('D.1. Finanzen-Ist Total'!$I$5:$I$29,'B. Finanz-Übersicht'!B14,'D.1. Finanzen-Ist Total'!$E$5:$E$29)+SUMIF('D.2. Finanzen-Ist Kasse'!$H$6:$H$29,B14,'D.2. Finanzen-Ist Kasse'!$D$6:$D$29)","v":0},null,null,null,null,{"$f":"SUMIF('D.1. Finanzen-Ist Total'!$I$5:$I$29,'B. Finanz-Übersicht'!B14,'D.1. Finanzen-Ist Total'!$G$5:$G$29)+SUMIF('D.2. Finanzen-Ist Kasse'!$H$6:$H$29,B14,'D.2. Finanzen-Ist Kasse'!$E$6:$E$29)","v":0}]
["g.","Gebühren jeglicher Art",null,null,null,null,null,null,null,null,null,null,null,null,null,null,null,null,null,null,null,null,null,null,null,{"$f":"SUMIF('C.1. Planung Ausgaben'!$C$5:$C$19,'B. Finanz-Übersicht'!B15,'C.1. Planung Ausgaben'!$H$5:$H$19)","v":0},null,null,null,null,{"$f":"SUMIF('D.1. Finanzen-Ist Total'!$I$5:$I$29,'B. Finanz-Übersicht'!B15,'D.1. Finanzen-Ist Total'!$E$5:$E$29)+SUMIF('D.2. Finanzen-Ist Kasse'!$H$6:$H$29,B15,'D.2. Finanzen-Ist Kasse'!$D$6:$D$29)","v":0},null,null,null,null,{"$f":"SUMIF('D.1. Finanzen-Ist Total'!$I$5:$I$29,'B. Finanz-Übersicht'!B15,'D.1. Finanzen-Ist Total'!$G$5:$G$29)+SUMIF('D.2. Finanzen-Ist Kasse'!$H$6:$H$29,B15,'D.2. Finanzen-Ist Kasse'!$E$6:$E$29)","v":0}]
["h.","Materialkosten (Verbrauch)",null,null,null,null,null,null,null,null,null,null,null,null,null,null,null,null,null,null,null,null,null,null,null,{"$f":"SUMIF('C.1. Planung Ausgaben'!$C$5:$C$19,'B. Finanz-Übersicht'!B16,'C.1. Planung Ausgaben'!$H$5:$H$19)","v":0},null,null,null,null,{"$f":"SUMIF('D.1. Finanzen-Ist Total'!$I$5:$I$29,'B. Finanz-Übersicht'!B16,'D.1. Finanzen-Ist Total'!$E$5:$E$29)+SUMIF('D.2. Finanzen-Ist Kasse'!$H$6:$H$29,B16,'D.2. Finanzen-Ist Kasse'!$D$6:$D$29)","v":0},null,null,null,null,{"$f":"SUMIF('D.1. Finanzen-Ist Total'!$I$5:$I$29,'B. Finanz-Übersicht'!B16,'D.1. Finanzen-Ist Total'!$G$5:$G$29)+SUMIF('D.2. Finanzen-Ist Kasse'!$H$6:$H$29,B16,'D.2. Finanzen-Ist Kasse'!$E$6:$E$29)","v":0}]
["i.",null,null,null,null,null,null,null,null,null,null,null,null,null,null,null,null,null,null,null,null,null,null,null,null,{"$f":"SUMIF('C.1. Planung Ausgaben'!$C$5:$C$19,'B. Finanz-Übersicht'!B17,'C.1. Planung Ausgaben'!$H$5:$H$19)","v":0},null,null,null,null,{"$f":"SUMIF('D.1. Finanzen-Ist Total'!$I$5:$I$29,'B. Finanz-Übersicht'!B17,'D.1. Finanzen-Ist Total'!$E$5:$E$29)+SUMIF('D.2. Finanzen-Ist Kasse'!$H$6:$H$29,B17,'D.2. Finanzen-Ist Kasse'!$D$6:$D$29)","v":0},null,null,null,null,{"$f":"SUMIF('D.1. Finanzen-Ist Total'!$I$5:$I$29,'B. Finanz-Übersicht'!B17,'D.1. Finanzen-Ist Total'!$G$5:$G$29)+SUMIF('D.2. Finanzen-Ist Kasse'!$H$6:$H$29,B17,'D.2. Finanzen-Ist Kasse'!$E$6:$E$29)","v":0}]
["j.",null,null,null,null,null,null,null,null,null,null,null,null,null,null,null,null,null,null,null,null,null,null,null,null,{"$f":"SUMIF('C.1. Planung Ausgaben'!$C$5:$C$19,'B. Finanz-Übersicht'!B18,'C.1. Planung Ausgaben'!$H$5:$H$19)","v":0},null,null,null,null,{"$f":"SUMIF('D.1. Finanzen-Ist Total'!$I$5:$I$29,'B. Finanz-Übersicht'!B18,'D.1. Finanzen-Ist Total'!$E$5:$E$29)+SUMIF('D.2. Finanzen-Ist Kasse'!$H$6:$H$29,B18,'D.2. Finanzen-Ist Kasse'!$D$6:$D$29)","v":0},null,null,null,null,{"$f":"SUMIF('D.1. Finanzen-Ist Total'!$I$5:$I$29,'B. Finanz-Übersicht'!B18,'D.1. Finanzen-Ist Total'!$G$5:$G$29)+SUMIF('D.2. Finanzen-Ist Kasse'!$H$6:$H$29,B18,'D.2. Finanzen-Ist Kasse'!$E$6:$E$29)","v":0}]
["Gesamtausgaben   ",null,null,null,null,null,null,null,null,null,null,null,null,null,null,null,null,null,null,null,null,null,null,null,null,{"$f":"SUM(Z9:AD18)","v":0},null,null,null,null,{"$f":"SUM(AE9:AI18)","v":0},null,null,null,null,{"$f":"SUM(AJ9:AL18)","v":0}]
[]
[null,null,null,null,null,null,null,null,null,null,null,null,null,null,null,null,null,null,null,null,null,null,"schwebende Einnahmen",null,null,"sichere Einnahmen"]
["3.2 ","Einnahmen",null,null,null,null,null,null,null,null,null,null,null,null,null,null,null,null,null,null,null,null,null,null,null,null,null,null,null,null,"Ist-Ausgaben",null,null,null,null,"Ist-Einnahmen"]
["a.","Eigenmittel (bare Mittel des Antragstellers aus Rücklagen/Haushaltsmitteln/Mitgliedsbeiträgen)",null,null,null,null,null,null,null,null,null,null,null,null,null,null,null,null,null,null,null,null,{"$f":"IF(B23<>\"\",SUMIFS('C.2. Planung Einnahmen'!$H$5:$H$18,'C.2. Planung Einnahmen'!$C$5:$C$18,'Tabellen-Interna'!B13,'C.2. Planung Einnahmen'!$J$5:$J$18,\"=\"&\"\",'C.2. Planung Einnahmen'!$L$5:$L$18,\"=\"&\"\")\n+SUMIFS('C.2. Planung Einnahmen'!$J$5:$J$18,'C.2. Planung Einnahmen'!$C$5:$C$18,'Tabellen-Interna'!B13,'C.2. Planung Einnahmen'!$L$5:$L$18,\"=\"&\"\"),0)","v":0},null,null,{"$f":"SUMIF('C.2. Planung Einnahmen'!$C$5:$C$18,'Tabellen-Interna'!B13,'C.2. Planung Einnahmen'!$L$5:$L$18)","v":0},null,null,null,null,{"$f":"+SUMIF('D.1. Finanzen-Ist Total'!$I$5:$I$29,'Tabellen-Interna'!B13,'D.1. Finanzen-Ist Total'!$E$5:$E$29)+SUMIF('D.2. Finanzen-Ist Kasse'!$H$6:$H$29,'Tabellen-Interna'!B13,'D.2. Finanzen-Ist Kasse'!$D$6:$D$29)","v":0},null,null,null,null,{"$f":"SUMIF('D.1. Finanzen-Ist Total'!$I$5:$I$29,'B. Finanz-Übersicht'!B23,'D.1. Finanzen-Ist Total'!$G$5:$G$29)+SUMIF('D.2. Finanzen-Ist Kasse'!$H$6:$H$29,'B. Finanz-Übersicht'!B23,'D.2. Finanzen-Ist Kasse'!$E$6:$E$29)","v":0}]
["b.","Eintrittseinnahmen FEUERWERK Konzerte",null,null,null,null,null,null,null,null,null,null,null,null,null,null,null,null,null,null,null,null,{"$f":"IF(B24<>\"\",SUMIFS('C.2. Planung Einnahmen'!$H$5:$H$18,'C.2. Planung Einnahmen'!$C$5:$C$18,'Tabellen-Interna'!B14,'C.2. Planung Einnahmen'!$J$5:$J$18,\"=\"&\"\",'C.2. Planung Einnahmen'!$L$5:$L$18,\"=\"&\"\")\n+SUMIFS('C.2. Planung Einnahmen'!$J$5:$J$18,'C.2. Planung Einnahmen'!$C$5:$C$18,'Tabellen-Interna'!B14,'C.2. Planung Einnahmen'!$L$5:$L$18,\"=\"&\"\"),0)","v":0},null,null,{"$f":"SUMIF('C.2. Planung Einnahmen'!$C$5:$C$18,'Tabellen-Interna'!B14,'C.2. Planung Einnahmen'!$L$5:$L$18)","v":0},null,null,null,null,{"$f":"+SUMIF('D.1. Finanzen-Ist Total'!$I$5:$I$29,'Tabellen-Interna'!B14,'D.1. Finanzen-Ist Total'!$E$5:$E$29)+SUMIF('D.2. Finanzen-Ist Kasse'!$H$6:$H$29,'Tabellen-Interna'!B14,'D.2. Finanzen-Ist Kasse'!$D$6:$D$29)","v":0},null,null,null,null,{"$f":"SUMIF('D.1. Finanzen-Ist Total'!$I$5:$I$29,'B. Finanz-Übersicht'!B24,'D.1. Finanzen-Ist Total'!$G$5:$G$29)+SUMIF('D.2. Finanzen-Ist Kasse'!$H$6:$H$29,'B. Finanz-Übersicht'!B24,'D.2. Finanzen-Ist Kasse'!$E$6:$E$29)","v":0}]
["c.","Spenden im Rahmen der FEUERWERK Konzerte",null,null,null,null,null,null,null,null,null,null,null,null,null,null,null,null,null,null,null,null,{"$f":"IF(B25<>\"\",SUMIFS('C.2. Planung Einnahmen'!$H$5:$H$18,'C.2. Planung Einnahmen'!$C$5:$C$18,'Tabellen-Interna'!B15,'C.2. Planung Einnahmen'!$J$5:$J$18,\"=\"&\"\",'C.2. Planung Einnahmen'!$L$5:$L$18,\"=\"&\"\")\n+SUMIFS('C.2. Planung Einnahmen'!$J$5:$J$18,'C.2. Planung Einnahmen'!$C$5:$C$18,'Tabellen-Interna'!B15,'C.2. Planung Einnahmen'!$L$5:$L$18,\"=\"&\"\"),0)","v":0},null,null,{"$f":"SUMIF('C.2. Planung Einnahmen'!$C$5:$C$18,'Tabellen-Interna'!B15,'C.2. Planung Einnahmen'!$L$5:$L$18)","v":0},null,null,null,null,{"$f":"+SUMIF('D.1. Finanzen-Ist Total'!$I$5:$I$29,'Tabellen-Interna'!B15,'D.1. Finanzen-Ist Total'!$E$5:$E$29)+SUMIF('D.2. Finanzen-Ist Kasse'!$H$6:$H$29,'Tabellen-Interna'!B15,'D.2. Finanzen-Ist Kasse'!$D$6:$D$29)","v":0},null,null,null,null,{"$f":"SUMIF('D.1. Finanzen-Ist Total'!$I$5:$I$29,'B. Finanz-Übersicht'!B25,'D.1. Finanzen-Ist Total'!$G$5:$G$29)+SUMIF('D.2. Finanzen-Ist Kasse'!$H$6:$H$29,'B. Finanz-Übersicht'!B25,'D.2. Finanzen-Ist Kasse'!$E$6:$E$29)","v":0}]
["d.",null,null,null,null,null,null,null,null,null,null,null,null,null,null,null,null,null,null,null,null,null,{"$f":"IF(B26<>\"\",SUMIFS('C.2. Planung Einnahmen'!$H$5:$H$18,'C.2. Planung Einnahmen'!$C$5:$C$18,'Tabellen-Interna'!B16,'C.2. Planung Einnahmen'!$J$5:$J$18,\"=\"&\"\",'C.2. Planung Einnahmen'!$L$5:$L$18,\"=\"&\"\")\n+SUMIFS('C.2. Planung Einnahmen'!$J$5:$J$18,'C.2. Planung Einnahmen'!$C$5:$C$18,'Tabellen-Interna'!B16,'C.2. Planung Einnahmen'!$L$5:$L$18,\"=\"&\"\"),0)","v":0},null,null,{"$f":"SUMIF('C.2. Planung Einnahmen'!$C$5:$C$18,'Tabellen-Interna'!B16,'C.2. Planung Einnahmen'!$L$5:$L$18)","v":0},null,null,null,null,{"$f":"+SUMIF('D.1. Finanzen-Ist Total'!$I$5:$I$29,'Tabellen-Interna'!B16,'D.1. Finanzen-Ist Total'!$E$5:$E$29)+SUMIF('D.2. Finanzen-Ist Kasse'!$H$6:$H$29,'Tabellen-Interna'!B16,'D.2. Finanzen-Ist Kasse'!$D$6:$D$29)","v":0},null,null,null,null,{"$f":"SUMIF('D.1. Finanzen-Ist Total'!$I$5:$I$29,'B. Finanz-Übersicht'!B26,'D.1. Finanzen-Ist Total'!$G$5:$G$29)+SUMIF('D.2. Finanzen-Ist Kasse'!$H$6:$H$29,'B. Finanz-Übersicht'!B26,'D.2. Finanzen-Ist Kasse'!$E$6:$E$29)","v":0}]
["e.",null,null,null,null,null,null,null,null,null,null,null,null,null,null,null,null,null,null,null,null,null,{"$f":"IF(B27<>\"\",SUMIFS('C.2. Planung Einnahmen'!$H$5:$H$18,'C.2. Planung Einnahmen'!$C$5:$C$18,'Tabellen-Interna'!B17,'C.2. Planung Einnahmen'!$J$5:$J$18,\"=\"&\"\",'C.2. Planung Einnahmen'!$L$5:$L$18,\"=\"&\"\")\n+SUMIFS('C.2. Planung Einnahmen'!$J$5:$J$18,'C.2. Planung Einnahmen'!$C$5:$C$18,'Tabellen-Interna'!B17,'C.2. Planung Einnahmen'!$L$5:$L$18,\"=\"&\"\"),0)","v":0},null,null,{"$f":"SUMIF('C.2. Planung Einnahmen'!$C$5:$C$18,'Tabellen-Interna'!B17,'C.2. Planung Einnahmen'!$L$5:$L$18)","v":0},null,null,null,null,{"$f":"+SUMIF('D.1. Finanzen-Ist Total'!$I$5:$I$29,'Tabellen-Interna'!B17,'D.1. Finanzen-Ist Total'!$E$5:$E$29)+SUMIF('D.2. Finanzen-Ist Kasse'!$H$6:$H$29,'Tabellen-Interna'!B17,'D.2. Finanzen-Ist Kasse'!$D$6:$D$29)","v":0},null,null,null,null,{"$f":"SUMIF('D.1. Finanzen-Ist Total'!$I$5:$I$29,'B. Finanz-Übersicht'!B27,'D.1. Finanzen-Ist Total'!$G$5:$G$29)+SUMIF('D.2. Finanzen-Ist Kasse'!$H$6:$H$29,'B. Finanz-Übersicht'!B27,'D.2. Finanzen-Ist Kasse'!$E$6:$E$29)","v":0}]
[null,"Förderer / Sponsoren / Spender"]
[]
["f.","Unternehmen: Industrie",null,null,null,null,null,null,null,null,null,null,null,null,null,null,null,null,null,null,null,null,{"$f":"IF(B30<>\"\",SUMIFS('C.2. Planung Einnahmen'!$H$5:$H$18,'C.2. Planung Einnahmen'!$C$5:$C$18,AR30,'C.2. Planung Einnahmen'!$J$5:$J$18,\"=\"&\"\",'C.2. Planung Einnahmen'!$L$5:$L$18,\"=\"&\"\")\n+SUMIFS('C.2. Planung Einnahmen'!$J$5:$J$18,'C.2. Planung Einnahmen'!$C$5:$C$18,AR30,'C.2. Planung Einnahmen'!$L$5:$L$18,\"=\"&\"\"),0)","v":0},null,null,{"$f":"AP33","v":0},null,null,null,null,{"$f":"SUMIF('D.1. Finanzen-Ist Total'!$I$5:$I$29,'B. Finanz-Übersicht'!AR30,'D.1. Finanzen-Ist Total'!$E$5:$E$29)+SUMIF('D.2. Finanzen-Ist Kasse'!$H$6:$H$29,'B. Finanz-Übersicht'!AR30,'D.2. Finanzen-Ist Kasse'!$D$6:$D$29)","v":0},null,null,null,null,{"$f":"SUMIF('D.1. Finanzen-Ist Total'!$I$5:$I$29,'B. Finanz-Übersicht'!AR30,'D.1. Finanzen-Ist Total'!$G$5:$G$29)+SUMIF('D.2. Finanzen-Ist Kasse'!$H$6:$H$29,'B. Finanz-Übersicht'!AR30,'D.2. Finanzen-Ist Kasse'!$E$6:$E$29)","v":0},null,null,null,null,null,null,null,{"$f":"LEFT(B30,20)","v":"Unternehmen: Industr"}]
[null,null,null,null,null,null,null,null,null,null,null,null,null,null,null,null,null,null,null,null,null,null,null,null,null,null,null,null,null,null,{"$f":"SUMIF('D.1. Finanzen-Ist Total'!$I$5:$I$29,'B. Finanz-Übersicht'!B31,'D.1. Finanzen-Ist Total'!$G$5:$G$29)+SUMIF('D.2. Finanzen-Ist Kasse'!$H$6:$H$29,'B. Finanz-Übersicht'!B31,'D.2. Finanzen-Ist Kasse'!$E$6:$E$29)","v":0},null,null,null,null,null,null,null,"beantragt ges.","beantragt. Noch offen","in Aussicht gestellt","zugesagt"]
[null,null,null,null,null,null,null,null,null,null,null,null,null,null,null,null,null,null,null,null,null,null,null,null,null,null,null,null,null,null,{"$f":"SUMIF('D.1. Finanzen-Ist Total'!$I$5:$I$29,'B. Finanz-Übersicht'!B32,'D.1. Finanzen-Ist Total'!$G$5:$G$29)+SUMIF('D.2. Finanzen-Ist Kasse'!$H$6:$H$29,'B. Finanz-Übersicht'!B32,'D.2. Finanzen-Ist Kasse'!$E$6:$E$29)","v":0},null,null,null,null,null,null,null,null,null,null,null,null,null,null,null,null,null,null,null,"--> da ist noch eine Zeile ausgeblendet"]
[null,"Status: ",null,{"$f":"IF(AN33>0,AN33/(AN33+AO33+AP33+0.00000000001),\"-\")","v":"-"},null,"Rückmeldung offen",null,null,null,null,{"$f":"IF(AO33<1,\"-\",AO33/(AO33+AP33+AN33+0.00000001))","v":"-"},null,"in Aussicht gestellt",null,null,null,null,{"$f":"IF(AP33>0,AP33/(AO33+AN33+AP33+0.00000001),\"-\")","v":"-"},null,"zugesagt",null,null,null,null,null,null,null,null,null,null,{"$f":"SUMIF('D.1. Finanzen-Ist Total'!$I$5:$I$29,'B. Finanz-Übersicht'!B33,'D.1. Finanzen-Ist Total'!$G$5:$G$29)+SUMIF('D.2. Finanzen-Ist Kasse'!$H$6:$H$29,'B. Finanz-Übersicht'!B33,'D.2. Finanzen-Ist Kasse'!$E$6:$E$29)","v":0},null,null,null,null,null,null,null,{"$f":"SUMIFS(Tabelle3[beantragt],Tabelle3[Gruppenname],AR30)","v":0},{"$f":"SUMIFS(Tabelle3[beantragt],Tabelle3[Gruppenname],AR30,Tabelle3[In Aussicht gestellt],\"=\"&\"\",Tabelle3[bewilligt],\"=\"&\"\")","v":0},{"$f":"SUMIFS(Tabelle3[In Aussicht gestellt],Tabelle3[Gruppenname],AR30,Tabelle3[bewilligt],\"=\"&\"\")","v":0},{"$f":"SUMIF(Tabelle3[Gruppenname],AR30,Tabelle3[bewilligt])","v":0}]
[]
[]
["g.",null,null,null,null,null,null,null,null,null,null,null,null,null,null,null,null,null,null,null,null,null,{"$f":"IF(B36<>\"\",SUMIFS('C.2. Planung Einnahmen'!$H$5:$H$18,'C.2. Planung Einnahmen'!$C$5:$C$18,AR36,'C.2. Planung Einnahmen'!$J$5:$J$18,\"=\"&\"\",'C.2. Planung Einnahmen'!$L$5:$L$18,\"=\"&\"\")\n+SUMIFS('C.2. Planung Einnahmen'!$J$5:$J$18,'C.2. Planung Einnahmen'!$C$5:$C$18,AR36,'C.2. Planung Einnahmen'!$L$5:$L$18,\"=\"&\"\"),0)","v":0},null,null,{"$f":"AP39","v":0},null,null,null,null,{"$f":"SUMIF('D.1. Finanzen-Ist Total'!$I$5:$I$29,'B. Finanz-Übersicht'!AR36,'D.1. Finanzen-Ist Total'!$E$5:$E$29)+SUMIF('D.2. Finanzen-Ist Kasse'!$H$6:$H$29,'B. Finanz-Übersicht'!AR36,'D.2. Finanzen-Ist Kasse'!$D$6:$D$29)","v":0},null,null,null,null,{"$f":"SUMIF('D.1. Finanzen-Ist Total'!$I$5:$I$29,'B. Finanz-Übersicht'!AR36,'D.1. Finanzen-Ist Total'!$G$5:$G$29)+SUMIF('D.2. Finanzen-Ist Kasse'!$H$6:$H$29,'B. Finanz-Übersicht'!AR36,'D.2. Finanzen-Ist Kasse'!$E$6:$E$29)","v":0},null,null,null,null,null,null,null,{"$f":"LEFT(B36,20)","v":""}]
[null,null,null,null,null,null,null,null,null,null,null,null,null,null,null,null,null,null,null,null,null,null,null,null,null,null,null,null,null,null,{"$f":"SUMIF('D.1. Finanzen-Ist Total'!$I$5:$I$29,'B. Finanz-Übersicht'!B37,'D.1. Finanzen-Ist Total'!$G$5:$G$29)+SUMIF('D.2. Finanzen-Ist Kasse'!$H$6:$H$29,'B. Finanz-Übersicht'!B37,'D.2. Finanzen-Ist Kasse'!$E$6:$E$29)","v":0},null,null,null,null,null,null,null,"beantragt ges.","beantragt. Noch offen","in Aussicht gestellt","zugesagt"]
[null,null,null,null,null,null,null,null,null,null,null,null,null,null,null,null,null,null,null,null,null,null,null,null,null,null,null,null,null,null,{"$f":"SUMIF('D.1. Finanzen-Ist Total'!$I$5:$I$29,'B. Finanz-Übersicht'!B38,'D.1. Finanzen-Ist Total'!$G$5:$G$29)+SUMIF('D.2. Finanzen-Ist Kasse'!$H$6:$H$29,'B. Finanz-Übersicht'!B38,'D.2. Finanzen-Ist Kasse'!$E$6:$E$29)","v":0}]
[null,"Status: ",null,{"$f":"IF(AN39>0,AN39/(AN39+AO39+AP39+0.00000000001),\"-\")","v":"-"},null,"Rückmeldung offen",null,null,null,null,{"$f":"IF(AO39<1,\"-\",AO39/(AO39+AP39+AN39+0.00000001))","v":"-"},null,"in Aussicht gestellt",null,null,null,null,{"$f":"IF(AP39>0,AP39/(AO39+AN39+AP39+0.00000001),\"-\")","v":"-"},null,"zugesagt",null,null,null,null,null,null,null,null,null,null,{"$f":"SUMIF('D.1. Finanzen-Ist Total'!$I$5:$I$29,'B. Finanz-Übersicht'!B39,'D.1. Finanzen-Ist Total'!$G$5:$G$29)+SUMIF('D.2. Finanzen-Ist Kasse'!$H$6:$H$29,'B. Finanz-Übersicht'!B39,'D.2. Finanzen-Ist Kasse'!$E$6:$E$29)","v":0},null,null,null,null,null,null,null,{"$f":"SUMIFS(Tabelle3[beantragt],Tabelle3[Gruppenname],AR36)","v":0},{"$f":"SUMIFS(Tabelle3[beantragt],Tabelle3[Gruppenname],AR36,Tabelle3[In Aussicht gestellt],\"=\"&\"\",Tabelle3[bewilligt],\"=\"&\"\")","v":0},{"$f":"SUMIFS(Tabelle3[In Aussicht gestellt],Tabelle3[Gruppenname],AR36,Tabelle3[bewilligt],\"=\"&\"\")","v":0},{"$f":"SUMIF(Tabelle3[Gruppenname],AR36,Tabelle3[bewilligt])","v":0}]
[]
[]
["h.",null,null,null,null,null,null,null,null,null,null,null,null,null,null,null,null,null,null,null,null,null,{"$f":"IF(B42<>\"\",SUMIFS('C.2. Planung Einnahmen'!$H$5:$H$18,'C.2. Planung Einnahmen'!$C$5:$C$18,AR42,'C.2. Planung Einnahmen'!$J$5:$J$18,\"=\"&\"\",'C.2. Planung Einnahmen'!$L$5:$L$18,\"=\"&\"\")\n+SUMIFS('C.2. Planung Einnahmen'!$J$5:$J$18,'C.2. Planung Einnahmen'!$C$5:$C$18,AR42,'C.2. Planung Einnahmen'!$L$5:$L$18,\"=\"&\"\"),0)","v":0},null,null,{"$f":"AP45","v":0},null,null,null,null,{"$f":"SUMIF('D.1. Finanzen-Ist Total'!$I$5:$I$29,'B. Finanz-Übersicht'!AR42,'D.1. Finanzen-Ist Total'!$E$5:$E$29)+SUMIF('D.2. Finanzen-Ist Kasse'!$H$6:$H$29,'B. Finanz-Übersicht'!AR42,'D.2. Finanzen-Ist Kasse'!$D$6:$D$29)","v":0},null,null,null,null,{"$f":"SUMIF('D.1. Finanzen-Ist Total'!$I$5:$I$29,'B. Finanz-Übersicht'!AR42,'D.1. Finanzen-Ist Total'!$G$5:$G$29)+SUMIF('D.2. Finanzen-Ist Kasse'!$H$6:$H$29,'B. Finanz-Übersicht'!AR42,'D.2. Finanzen-Ist Kasse'!$E$6:$E$29)","v":0},null,null,null,null,null,null,null,{"$f":"LEFT(B42,20)","v":""}]
[null,null,null,null,null,null,null,null,null,null,null,null,null,null,null,null,null,null,null,null,null,null,null,null,null,null,null,null,null,null,{"$f":"SUMIF('D.1. Finanzen-Ist Total'!$I$5:$I$29,'B. Finanz-Übersicht'!B43,'D.1. Finanzen-Ist Total'!$G$5:$G$29)+SUMIF('D.2. Finanzen-Ist Kasse'!$H$6:$H$29,'B. Finanz-Übersicht'!B43,'D.2. Finanzen-Ist Kasse'!$E$6:$E$29)","v":0},null,null,null,null,null,null,null,"beantragt ges.","beantragt. Noch offen","in Aussicht gestellt","zugesagt"]
[null,null,null,null,null,null,null,null,null,null,null,null,null,null,null,null,null,null,null,null,null,null,null,null,null,null,null,null,null,null,{"$f":"SUMIF('D.1. Finanzen-Ist Total'!$I$5:$I$29,'B. Finanz-Übersicht'!B44,'D.1. Finanzen-Ist Total'!$G$5:$G$29)+SUMIF('D.2. Finanzen-Ist Kasse'!$H$6:$H$29,'B. Finanz-Übersicht'!B44,'D.2. Finanzen-Ist Kasse'!$E$6:$E$29)","v":0}]
[null,"Status: ",null,{"$f":"IF(AN45>0,AN45/(AN45+AO45+AP45+0.00000000001),\"-\")","v":"-"},null,"Rückmeldung offen",null,null,null,null,{"$f":"IF(AO45<1,\"-\",AO45/(AO45+AP45+AN45+0.00000001))","v":"-"},null,"in Aussicht gestellt",null,null,null,null,{"$f":"IF(AP45>0,AP45/(AO45+AN45+AP45+0.00000001),\"-\")","v":"-"},null,"zugesagt",null,null,null,null,null,null,null,null,null,null,{"$f":"SUMIF('D.1. Finanzen-Ist Total'!$I$5:$I$29,'B. Finanz-Übersicht'!B45,'D.1. Finanzen-Ist Total'!$G$5:$G$29)+SUMIF('D.2. Finanzen-Ist Kasse'!$H$6:$H$29,'B. Finanz-Übersicht'!B45,'D.2. Finanzen-Ist Kasse'!$E$6:$E$29)","v":0},null,null,null,null,null,null,null,{"$f":"SUMIFS(Tabelle3[beantragt],Tabelle3[Gruppenname],AR42)","v":0},{"$f":"SUMIFS(Tabelle3[beantragt],Tabelle3[Gruppenname],AR42,Tabelle3[In Aussicht gestellt],\"=\"&\"\",Tabelle3[bewilligt],\"=\"&\"\")","v":0},{"$f":"SUMIFS(Tabelle3[In Aussicht gestellt],Tabelle3[Gruppenname],AR42,Tabelle3[bewilligt],\"=\"&\"\")","v":0},{"$f":"SUMIF(Tabelle3[Gruppenname],AR42,Tabelle3[bewilligt])","v":0}]
[]
[]
["i.",null,null,null,null,null,null,null,null,null,null,null,null,null,null,null,null,null,null,null,null,null,{"$f":"IF(B48<>\"\",SUMIFS('C.2. Planung Einnahmen'!$H$5:$H$18,'C.2. Planung Einnahmen'!$C$5:$C$18,AR48,'C.2. Planung Einnahmen'!$J$5:$J$18,\"=\"&\"\",'C.2. Planung Einnahmen'!$L$5:$L$18,\"=\"&\"\")\n+SUMIFS('C.2. Planung Einnahmen'!$J$5:$J$18,'C.2. Planung Einnahmen'!$C$5:$C$18,AR48,'C.2. Planung Einnahmen'!$L$5:$L$18,\"=\"&\"\"),0)","v":0},null,null,{"$f":"AP51","v":0},null,null,null,null,{"$f":"SUMIF('D.1. Finanzen-Ist Total'!$I$5:$I$29,'B. Finanz-Übersicht'!AR48,'D.1. Finanzen-Ist Total'!$E$5:$E$29)+SUMIF('D.2. Finanzen-Ist Kasse'!$H$6:$H$29,'B. Finanz-Übersicht'!AR48,'D.2. Finanzen-Ist Kasse'!$D$6:$D$29)","v":0},null,null,null,null,{"$f":"SUMIF('D.1. Finanzen-Ist Total'!$I$5:$I$29,'B. Finanz-Übersicht'!AR48,'D.1. Finanzen-Ist Total'!$G$5:$G$29)+SUMIF('D.2. Finanzen-Ist Kasse'!$H$6:$H$29,'B. Finanz-Übersicht'!AR48,'D.2. Finanzen-Ist Kasse'!$E$6:$E$29)","v":0},null,null,null,null,null,null,null,{"$f":"LEFT(B48,20)","v":""}]
[null,null,null,null,null,null,null,null,null,null,null,null,null,null,null,null,null,null,null,null,null,null,null,null,null,null,null,null,null,null,{"$f":"SUMIF('D.1. Finanzen-Ist Total'!$I$5:$I$29,'B. Finanz-Übersicht'!B49,'D.1. Finanzen-Ist Total'!$G$5:$G$29)+SUMIF('D.2. Finanzen-Ist Kasse'!$H$6:$H$29,'B. Finanz-Übersicht'!B49,'D.2. Finanzen-Ist Kasse'!$E$6:$E$29)","v":0},null,null,null,null,null,null,null,"beantragt ges.","beantragt. Noch offen","in Aussicht gestellt","zugesagt"]
[null,null,null,null,null,null,null,null,null,null,null,null,null,null,null,null,null,null,null,null,null,null,null,null,null,null,null,null,null,null,{"$f":"SUMIF('D.1. Finanzen-Ist Total'!$I$5:$I$29,'B. Finanz-Übersicht'!B50,'D.1. Finanzen-Ist Total'!$G$5:$G$29)+SUMIF('D.2. Finanzen-Ist Kasse'!$H$6:$H$29,'B. Finanz-Übersicht'!B50,'D.2. Finanzen-Ist Kasse'!$E$6:$E$29)","v":0}]
[null,"Status: ",null,{"$f":"IF(AN51>0,AN51/(AN51+AO51+AP51+0.00000000001),\"-\")","v":"-"},null,"Rückmeldung offen",null,null,null,null,{"$f":"IF(AO51<1,\"-\",AO51/(AO51+AP51+AN51+0.00000001))","v":"-"},null,"in Aussicht gestellt",null,null,null,null,{"$f":"IF(AP51>0,AP51/(AO51+AN51+AP51+0.00000001),\"-\")","v":"-"},null,"zugesagt",null,null,null,null,null,null,null,null,null,null,{"$f":"SUMIF('D.1. Finanzen-Ist Total'!$I$5:$I$29,'B. Finanz-Übersicht'!B51,'D.1. Finanzen-Ist Total'!$G$5:$G$29)+SUMIF('D.2. Finanzen-Ist Kasse'!$H$6:$H$29,'B. Finanz-Übersicht'!B51,'D.2. Finanzen-Ist Kasse'!$E$6:$E$29)","v":0},null,null,null,null,null,null,null,{"$f":"SUMIFS(Tabelle3[beantragt],Tabelle3[Gruppenname],AR48)","v":0},{"$f":"SUMIFS(Tabelle3[beantragt],Tabelle3[Gruppenname],AR48,Tabelle3[In Aussicht gestellt],\"=\"&\"\",Tabelle3[bewilligt],\"=\"&\"\")","v":0},{"$f":"SUMIFS(Tabelle3[In Aussicht gestellt],Tabelle3[Gruppenname],AR48,Tabelle3[bewilligt],\"=\"&\"\")","v":0},{"$f":"SUMIF(Tabelle3[Gruppenname],AR48,Tabelle3[bewilligt])","v":0}]
[]
[]
["j.",null,null,null,null,null,null,null,null,null,null,null,null,null,null,null,null,null,null,null,null,null,{"$f":"IF(B54<>\"\",SUMIFS('C.2. Planung Einnahmen'!$H$5:$H$18,'C.2. Planung Einnahmen'!$C$5:$C$18,AR54,'C.2. Planung Einnahmen'!$J$5:$J$18,\"=\"&\"\",'C.2. Planung Einnahmen'!$L$5:$L$18,\"=\"&\"\")\n+SUMIFS('C.2. Planung Einnahmen'!$J$5:$J$18,'C.2. Planung Einnahmen'!$C$5:$C$18,AR54,'C.2. Planung Einnahmen'!$L$5:$L$18,\"=\"&\"\"),0)","v":0},null,null,{"$f":"AP57","v":0},null,null,null,null,{"$f":"SUMIF('D.1. Finanzen-Ist Total'!$I$5:$I$29,'B. Finanz-Übersicht'!AR54,'D.1. Finanzen-Ist Total'!$E$5:$E$29)+SUMIF('D.2. Finanzen-Ist Kasse'!$H$6:$H$29,'B. Finanz-Übersicht'!AR54,'D.2. Finanzen-Ist Kasse'!$D$6:$D$29)","v":0},null,null,null,null,{"$f":"SUMIF('D.1. Finanzen-Ist Total'!$I$5:$I$29,'B. Finanz-Übersicht'!AR54,'D.1. Finanzen-Ist Total'!$G$5:$G$29)+SUMIF('D.2. Finanzen-Ist Kasse'!$H$6:$H$29,'B. Finanz-Übersicht'!AR54,'D.2. Finanzen-Ist Kasse'!$E$6:$E$29)","v":0},null,null,null,null,null,null,null,{"$f":"LEFT(B54,20)","v":""}]
[null,null,null,null,null,null,null,null,null,null,null,null,null,null,null,null,null,null,null,null,null,null,null,null,null,null,null,null,null,null,{"$f":"SUMIF('D.1. Finanzen-Ist Total'!$I$5:$I$29,'B. Finanz-Übersicht'!B55,'D.1. Finanzen-Ist Total'!$G$5:$G$29)+SUMIF('D.2. Finanzen-Ist Kasse'!$H$6:$H$29,'B. Finanz-Übersicht'!B55,'D.2. Finanzen-Ist Kasse'!$E$6:$E$29)","v":0},null,null,null,null,null,null,null,"beantragt ges.","beantragt. Noch offen","in Aussicht gestellt","zugesagt"]
[null,null,null,null,null,null,null,null,null,null,null,null,null,null,null,null,null,null,null,null,null,null,null,null,null,null,null,null,null,null,{"$f":"SUMIF('D.1. Finanzen-Ist Total'!$I$5:$I$29,'B. Finanz-Übersicht'!B56,'D.1. Finanzen-Ist Total'!$G$5:$G$29)+SUMIF('D.2. Finanzen-Ist Kasse'!$H$6:$H$29,'B. Finanz-Übersicht'!B56,'D.2. Finanzen-Ist Kasse'!$E$6:$E$29)","v":0}]
[null,"Status: ",null,{"$f":"IF(AN57>0,AN57/(AN57+AO57+AP57+0.00000000001),\"-\")","v":"-"},null,"Rückmeldung offen",null,null,null,null,{"$f":"IF(AO57<1,\"-\",AO57/(AO57+AP57+AN57+0.00000001))","v":"-"},null,"in Aussicht gestellt",null,null,null,null,{"$f":"IF(AP57>0,AP57/(AO57+AN57+AP57+0.00000001),\"-\")","v":"-"},null,"zugesagt",null,null,null,null,null,null,null,null,null,null,{"$f":"SUMIF('D.1. Finanzen-Ist Total'!$I$5:$I$29,'B. Finanz-Übersicht'!B57,'D.1. Finanzen-Ist Total'!$G$5:$G$29)+SUMIF('D.2. Finanzen-Ist Kasse'!$H$6:$H$29,'B. Finanz-Übersicht'!B57,'D.2. Finanzen-Ist Kasse'!$E$6:$E$29)","v":0},null,null,null,null,null,null,null,{"$f":"SUMIFS(Tabelle3[beantragt],Tabelle3[Gruppenname],AR54)","v":0},{"$f":"SUMIFS(Tabelle3[beantragt],Tabelle3[Gruppenname],AR54,Tabelle3[In Aussicht gestellt],\"=\"&\"\",Tabelle3[bewilligt],\"=\"&\"\")","v":0},{"$f":"SUMIFS(Tabelle3[In Aussicht gestellt],Tabelle3[Gruppenname],AR54,Tabelle3[bewilligt],\"=\"&\"\")","v":0},{"$f":"SUMIF(Tabelle3[Gruppenname],AR54,Tabelle3[bewilligt])","v":0}]
[null,null,null,{"$f":"IF(AN58>0,(AN58-AP58)/(AN58+0.00000000001),\"-\")","v":"-"},null,null,null,null,null,null,{"$f":"IF(OR(AP58>0,AO58<1),\"-\",AO58/(AN58+0.00000001))","v":"-"},null,null,null,null,null,null,{"$f":"IF(AP58>0,AP58/(AN58+0.00000001),\"-\")","v":"-"}]
["k.","Summe schwebende vs. Summe sichere Einnahmen:",null,null,null,null,null,null,null,null,null,null,null,null,null,null,null,null,null,null,null,null,{"$f":"W54+W48+W42+W36+W30+W27+W26+W25+W24+W23","v":0},null,null,{"$f":"SUM(Z23:AD57)","v":0},null,null,null,null,"-",null,null,null,null,"-"]
[]
[null,"Noch bestehende Finanzierungslücke bei Zustellung dieses Antrages an Sie:",null,null,null,null,null,null,null,null,null,null,null,null,null,null,null,null,null,null,null,null,null,null,null,{"$f":"Z19-Z59","v":0},null,null,null,null,{"$f":"SUM(AE23:AI60)","v":0},null,null,null,null,{"$f":"SUM(AJ23:AL57)","v":0}]
[]
[null,null,null,null,null,null,null,null,null,null,null,null,null,null,null,null,null,null,null,null,null,null,null,null,null,null,null,null,null,null,{"$f":"AE61+AJ61+AE19+AJ19","v":0},null,null,null,null,"<-- Projektergebnis"]

{"sheet":"C.1. Planung Ausgaben","index":2,"n_rows":23,"n_cols":10,"rows_kept":23,"cut":false,"hidden":false,"merged":[]}
["Planung Ausgaben für: ",null,null,null,"derzeitige Finanzierungslücke im Best Case: "]
[{"$f":"'A. Antrag'!A3","v":0},null,null,null,{"$f":"IF('C.2. Planung Einnahmen'!E2-'C.2. Planung Einnahmen'!F22<0,-('C.2. Planung Einnahmen'!F22-'C.2. Planung Einnahmen'!E2),\"alles gut.\")","v":"alles gut."}]
[]
["Einn.","Zeile","Gruppenname","Ausgabengrund","Kostenstelle / Verantwortlicher:","Einheiten:","Kosten / Einheit:","Gesamtkosten: ","Priorität / ABC-Analyse:","Status: "]
["3.1"]
["3.1"]
["3.1"]
["3.1"]
["3.1"]
["3.1"]
["3.1"]
["3.1"]
["3.1"]
["3.1"]
["3.1"]
["3.1"]
["3.1"]
[]
["3.1"]
[null,null,null,null,null,null,{"$f":"SUBTOTAL(109,Tabelle35[Kosten / Einheit:])","v":0},{"$f":"SUM(Tabelle35[Gesamtkosten: ])","v":0}]
[]
["Blick zu den Einnahmen: "]
[null,null,null,null,"zugesagte sichere Einnahmen aus C.2: ",{"$f":"Tabelle3[[#Totals],[bewilligt]]","v":0},"sichere Ein. übrig:",{"$f":"F23-Tabelle35[[#Totals],[Gesamtkosten: ]]","v":0}]

{"sheet":"C.2. Planung Einnahmen","index":3,"n_rows":22,"n_cols":15,"rows_kept":22,"cut":false,"hidden":false,"merged":[]}
["Planung Einnahmen für: ",null,null,null,"best case:","to think about:",null,null,null,null,null,null,"abgerufen (%)","eingegangen (%)"]
[{"$f":"'A. Antrag'!A3","v":0},null,null,null,{"$f":"SUMIFS(Tabelle3[geplante Akquise / mögliche Fördersumme: ],Tabelle3[beantragt],\"=\"&\"\",Tabelle3[In Aussicht gestellt],\"=\"&\"\",Tabelle3[bewilligt],\"=\"&\"\")\n+SUMIFS(Tabelle3[beantragt],Tabelle3[In Aussicht gestellt],\"=\"&\"\",Tabelle3[bewilligt],\"=\"&\"\")\n+SUMIFS(Tabelle3[In Aussicht gestellt],Tabelle3[bewilligt],\"=\"&\"\")\n+SUM(Tabelle3[bewilligt])","v":0},{"$f":"IF(E2-F22<0,-(F22-E2),\"alles gut.\")","v":"alles gut."},null,null,null,null,null,null,{"$f":"IF(Tabelle3[[#Totals],[bewilligt]]<>0,Tabelle3[[#Totals],[abgerufen (€)]]/Tabelle3[[#Totals],[bewilligt]],\"-\")","v":"-"},{"$f":"IF(Tabelle3[[#Totals],[abgerufen (€)]]<>0,Tabelle3[[#Totals],[eingegangen (€)]]/Tabelle3[[#Totals],[abgerufen (€)]],\"-\")","v":"-"}]
[]
["Einn.","Zeile","Gruppenname","Name / Institution","Ansprechpartner","Einnahmenart","geplante Akquise / mögliche Fördersumme: ","beantragt","Beantragungs-datum","In Aussicht gestellt","per \nNachricht vom","bewilligt","Bewilligungs-datum","abgerufen (€)","eingegangen (€)"]
["3.2"]
["3.2"]
["3.2"]
["3.2"]
["3.2"]
["3.2"]
["3.2"]
["3.2"]
["3.2"]
["3.2"]
["3.2"]
["3.2"]
["3.2"]
["3.2"]
[null,null,null,null,null,null,null,{"$f":"SUBTOTAL(109,Tabelle3[beantragt])","v":0},null,{"$f":"SUBTOTAL(109,Tabelle3[In Aussicht gestellt])","v":0},null,{"$f":"SUBTOTAL(109,Tabelle3[bewilligt])","v":0},null,{"$f":"SUBTOTAL(109,Tabelle3[abgerufen (€)])","v":0},{"$f":"SUBTOTAL(109,Tabelle3[eingegangen (€)])","v":0}]
[]
["Blick zu den Kosten: "]
[null,null,null,null,"geplante Ausgaben aus C1:",{"$f":"Tabelle35[[#Totals],[Gesamtkosten: ]]","v":0}]

{"sheet":"D.1. Finanzen-Ist Total","index":4,"n_rows":33,"n_cols":10,"rows_kept":33,"cut":false,"hidden":false,"merged":[[0,0,0,1],[1,1,1,4]]}
["Einnahmen / Ausgaben zu: ",null,null,null,null,null,null,"vorläuf. Projektergebnis:"]
[{"$f":"'A. Antrag'!A3","v":0},null,null,null,null,null,null,{"$f":"Tabelle256[[#Totals],[Ausgaben]]+Tabelle256[[#Totals],[Einnahmen]]+E31+G31","v":0}]
["Hier bitte nur ein- und ausgabenwirksame Zahlungsströme abbilden // keine Buchungen von Bank an Kasse oder sonstige Aktiv-Tauschbuchungen"]
["Aussteller","Belegdatum","Zahlungsdatum:","Zusage vom:","Ausgaben","Beleg?","Einnahmen","Verwendungszweck:","Kostenkategorie (für Finanzübersicht)","Zahlungsform"]
[]
[]
[]
[]
[]
[]
[]
[]
[]
[]
[]
[]
[]
[]
[]
[]
[]
[]
[]
[]
[]
[]
[]
[]
[]
[null,null,null,null,{"$f":"SUBTOTAL(109,Tabelle256[Ausgaben])","v":0},null,{"$f":"SUBTOTAL(109,Tabelle256[Einnahmen])","v":0}]
["Projektkassendelta","Bei Abschluss PK",null,null,{"$f":"TabProjektkasse[[#Totals],[Ausgaben]]","v":0},null,{"$f":"TabProjektkasse[[#Totals],[Einnahmen]]","v":0},null,"diverse - siehe Kasse","bar"]
[null,null,null,null,{"$f":"E31+Tabelle256[[#Totals],[Ausgaben]]","v":0},null,{"$f":"G31+Tabelle256[[#Totals],[Einnahmen]]","v":0}]
[null,null,null,null,{"$f":"E32+G32","v":0}]

{"sheet":"D.2. Finanzen-Ist Kasse","index":5,"n_rows":37,"n_cols":9,"rows_kept":37,"cut":false,"hidden":false,"merged":[[51,3,51,4],[2,2,2,3]]}
["Projektkasse zu:",null,null,null,null,"Startbetrag bitte eintragen!","Ergebnis Einnahmen zu Ausgaben  (ergibt sich automatisch!)"]
[{"$f":"'A. Antrag'!A3","v":0},null,null,null,null,null,{"$f":"TabProjektkasse[[#Totals],[Einnahmen]]+TabProjektkasse[[#Totals],[Ausgaben]]","v":0}]
["Projektkassenverantwortlicher: "]
[]
["Aussteller","Datum","Einlage / Entnahme","Ausgaben","Einnahmen","lauf. Kassenbestand","Verwendungszweck:","Kategorie (für Finanzübersicht)","Buchungsanweisung (auszufüllen im TB-Office)"]
[null,null,null,null,null,0]
[null,null,null,null,null,0]
[null,null,null,null,null,0]
[null,null,null,null,null,0]
[null,null,null,null,null,0]
[null,null,null,null,null,0]
[null,null,null,null,null,0]
[null,null,null,null,null,0]
[null,null,null,null,null,0]
[null,null,null,null,null,0]
[null,null,null,null,null,0]
[null,null,null,null,null,0]
[null,null,null,null,null,0]
[null,null,null,null,null,0]
[null,null,null,null,null,0]
[null,null,null,null,null,0]
[null,null,null,null,null,0]
[null,null,null,null,null,0]
[null,null,null,null,null,0]
[null,null,null,null,null,0]
[null,null,null,null,null,0]
[null,null,null,null,null,0]
[null,null,null,null,null,0]
[null,null,null,null,null,0]
[null,null,{"$f":"SUBTOTAL(109,TabProjektkasse[Einlage / Entnahme])","v":0},{"$f":"SUBTOTAL(109,TabProjektkasse[Ausgaben])","v":0},{"$f":"SUBTOTAL(109,TabProjektkasse[Einnahmen])","v":0},"5,00 €","5,00 €"]
[]
["Abrechnung der Projektkasse mit Veranstalter / Projektleiter: "]
["Abrechnung erfolgte am / Tag, Datum, Uhrzeit: "]
["Belege und Abschlussbestand in \"Einnahmen / Ausgaben\" Rechnung (D1) übernommen. "]
[]
[]
["Unterschrift Office / Projektleiter",null,null,"Unterschrift Projektkassenführer"]

{"sheet":"Tabellen-Interna","index":6,"n_rows":70,"n_cols":25,"rows_kept":70,"cut":false,"hidden":false,"merged":[]}
["Achtung! - Dieses Tabellenblatt bitte nicht umbenennen. - Hier sind keinerlei manuelle Änderungen notwendig! - Alle Listen werden automatisch generiert. Außerdem sollten keine Spalten verändert werden, diese sind im Makro fix.",null,null,null,null,null,null,null,null,null,null,null,null,null,null,null,null,null,null,null,"Keine Änderung ohne Absprache!",null,"Keine Änderung ohne Absprache!",null,"Keine Änderung ohne Absprache!"]
[null,"Liste für Einnahmen. - Nur als Hilfte",null,"Liste für Einnahmen/Ausgaben. - Eigentliche Einträge für die Listen",null,"Liste für Ausgaben. - Eigentliche Einträge für die Listen",null,"Liste für Einnahmen. - Eigentliche Einträge für die Listen",null,null,null,null,null,null,"Liste mit allen Tabellenblättern",null,"Liste mit allen Tabellen",null,"Liste mit allen Spalten",null,"Einnahmenarten",null,"Einnahmenkategorien",null,"Ausgabekategorien"]
[null,{"$f":"IF('B. Finanz-Übersicht'!B9<>\"\",'B. Finanz-Übersicht'!B9,\"\")","v":"Verwaltungsaufwand Trägerverein"},null,"-- Ausgaben --",null,"Verwaltungsaufwand Trägerverein",null,"Eigenmittel (bare Mi",null,null,null,null,null,null,"A. Antrag",null,"Tabelle35",null,"abgerufen (€)",null,"Spende",null,"Bundesmittel",null,"Projektverwaltung"]
[null,{"$f":"IF('B. Finanz-Übersicht'!B10<>\"\",'B. Finanz-Übersicht'!B10,\"\")","v":"Projektleitung"},null,"Verwaltungsaufwand Trägerverein",null,"Projektleitung",null,"Eintrittseinnahmen F",null,null,null,null,null,null,"B. Finanz-Übersicht",null,"Tabelle3",null,"Ansprechpartner",null,"Sponsoring",null,"Kommunale Mittel",null,"Projektleitung"]
[null,{"$f":"IF('B. Finanz-Übersicht'!B11<>\"\",'B. Finanz-Übersicht'!B11,\"\")","v":"Ehrenamtspauschalen"},null,"Projektleitung",null,"Ehrenamtspauschalen",null,"Spenden im Rahmen de",null,null,null,"Fehler?",false,null,"C.1. Planung Ausgaben",null,"Tabelle256",null,"Ausgaben",null,"Umsatz",null,"Landesmittel",null,"Übungsleiterpauschalen"]
[null,{"$f":"IF('B. Finanz-Übersicht'!B12<>\"\",'B. Finanz-Übersicht'!B12,\"\")","v":"sonstige Dienstleistungen"},null,"Ehrenamtspauschalen",null,"sonstige Dienstleistungen",null,"Unternehmen: Industr",null,null,null,null,null,null,"C.2. Planung Einnahmen",null,"TabProjektkasse",null,"Ausgabengrund",null,null,null,"Private Förderer",null,"Ehrenamtspauschalen"]
[null,{"$f":"IF('B. Finanz-Übersicht'!B13<>\"\",'B. Finanz-Übersicht'!B13,\"\")","v":"Materialkosten (Verbrauch)"},null,"sonstige Dienstleistungen",null,"Materialkosten (Verbrauch)",null,null,null,null,null,null,null,null,"D.1. Finanzen-Ist Total",null,null,null,"Aussteller",null,null,null,"Schule (privat)",null,"sonstige Dienstleistungen"]
[null,{"$f":"IF('B. Finanz-Übersicht'!B14<>\"\",'B. Finanz-Übersicht'!B14,\"\")","v":"Catering"},null,"Materialkosten (Verbrauch)",null,"Catering",null,null,null,null,null,null,null,null,"D.2. Finanzen-Ist Kasse",null,null,null,"beantragt",null,null,null,"Schule (öffentlich)",null,"Materialkosten (Verbrauch)"]
[null,{"$f":"IF('B. Finanz-Übersicht'!B15<>\"\",'B. Finanz-Übersicht'!B15,\"\")","v":"Gebühren jeglicher Art"},null,"Catering",null,"Gebühren jeglicher Art",null,null,null,null,null,null,null,null,"E.1 Sub-FüBuCos",null,null,null,"Beantragungs-datum",null,null,null,"Stiftungen",null,"Anschaffungen (Investitonen, Gebrauchtsmaterial)"]
[null,{"$f":"IF('B. Finanz-Übersicht'!B16<>\"\",'B. Finanz-Übersicht'!B16,\"\")","v":"Materialkosten (Verbrauch)"},null,"Gebühren jeglicher Art",null,"Materialkosten (Verbrauch)",null,null,null,null,null,null,null,null,null,null,null,null,"Beleg?",null,null,null,"Unternehmen: Industrie",null,"Mieten (Material, Räume etc.)"]
[null,{"$f":"IF('B. Finanz-Übersicht'!B17<>\"\",'B. Finanz-Übersicht'!B17,\"\")","v":""},null,"Materialkosten (Verbrauch)",null,null,null,null,null,null,null,null,null,null,null,null,null,null,"Belegdatum",null,null,null,"Unternehmen: Dienstleistung",null,"Gebühren jeglicher Art"]
[null,{"$f":"IF('B. Finanz-Übersicht'!B18<>\"\",'B. Finanz-Übersicht'!B18,\"\")","v":""},null,"-- Einnahmen --",null,null,null,null,null,null,null,null,null,null,null,null,null,null,"bewilligt",null,null,null,"Unternehmen: Handel",null,"Reisekosten"]
[null,{"$f":"LEFT('B. Finanz-Übersicht'!B23,20)","v":"Eigenmittel (bare Mi"},null,"Verwaltungsaufwand Trägerverein",null,null,null,null,null,null,null,null,null,null,null,null,null,null,"Bewilligungs-datum",null,null,null,null,null,"Beherbergungskosten"]
[null,{"$f":"LEFT('B. Finanz-Übersicht'!B24,20)","v":"Eintrittseinnahmen F"},null,"Projektleitung",null,null,null,null,null,null,null,null,null,null,null,null,null,null,"Buchungsanweisung (auszufüllen im TB-Office)",null,null,null,null,null,"Catering"]
[null,{"$f":"LEFT('B. Finanz-Übersicht'!B25,20)","v":"Spenden im Rahmen de"},null,"Ehrenamtspauschalen",null,null,null,null,null,null,null,null,null,null,null,null,null,null,"Datum",null,null,null,null,null,"Werbung"]
[null,{"$f":"LEFT('B. Finanz-Übersicht'!B26,20)","v":""},null,"sonstige Dienstleistungen",null,null,null,null,null,null,null,null,null,null,null,null,null,null,"eingegangen (€)",null,null,null,null,null,"Dokumentation (Video, Medien, Foto, Text)"]
[null,{"$f":"LEFT('B. Finanz-Übersicht'!B27,20)","v":""},null,"Materialkosten (Verbrauch)",null,null,null,null,null,null,null,null,null,null,null,null,null,null,"Einheiten:",null,null,null,null,null,"Handelsprodukte"]
[null,{"$f":"LEFT('B. Finanz-Übersicht'!B30,20)","v":"Unternehmen: Industr"},null,"Catering",null,null,null,null,null,null,null,null,null,null,null,null,null,null,"Einlage / Entnahme"]
[null,null,null,"Gebühren jeglicher Art",null,null,null,null,null,null,null,null,null,null,null,null,null,null,"Einn."]
[null,{"$f":"LEFT('B. Finanz-Übersicht'!B36,20)","v":""},null,"Materialkosten (Verbrauch)",null,null,null,null,null,null,null,null,null,null,null,null,null,null,"Einn."]
[null,{"$f":"LEFT('B. Finanz-Übersicht'!B42,20)","v":""},null,null,null,null,null,null,null,null,null,null,null,null,null,null,null,null,"Einnahmen"]
[null,{"$f":"LEFT('B. Finanz-Übersicht'!B48,20)","v":""},null,null,null,null,null,null,null,null,null,null,null,null,null,null,null,null,"Einnahmenart"]
[null,{"$f":"LEFT('B. Finanz-Übersicht'!B54,20)","v":""},null,null,null,null,null,null,null,null,null,null,null,null,null,null,null,null,"geplante Akquise / mögliche Fördersumme: "]
[null,null,null,null,null,null,null,null,null,null,null,null,null,null,null,null,null,null,"Gesamtkosten: "]
[null,null,null,null,null,null,null,null,null,null,null,null,null,null,null,null,null,null,"Gruppenname"]
[null,null,null,null,null,null,null,null,null,null,null,null,null,null,null,null,null,null,"In Aussicht gestellt"]
[null,null,null,null,null,null,null,null,null,null,null,null,null,null,null,null,null,null,"Kategorie (für Finanzübersicht)"]
[null,null,null,null,null,null,null,null,null,null,null,null,null,null,null,null,null,null,"Kosten / Einheit:"]
[null,null,null,null,null,null,null,null,null,null,null,null,null,null,null,null,null,null,"Kostenkategorie (für Finanzübersicht)"]
[null,null,null,null,null,null,null,null,null,null,null,null,null,null,null,null,null,null,"Kostenstelle / Verantwortlicher:"]
[null,null,null,null,null,null,null,null,null,null,null,null,null,null,null,null,null,null,"lauf. Kassenbestand"]
[null,null,null,null,null,null,null,null,null,null,null,null,null,null,null,null,null,null,"Name / Institution"]
[null,null,null,null,null,null,null,null,null,null,null,null,null,null,null,null,null,null,"per \nNachricht vom"]
[null,null,null,null,null,null,null,null,null,null,null,null,null,null,null,null,null,null,"Priorität / ABC-Analyse:"]
[null,null,null,"ToDo:",null,null,null,null,null,null,null,null,null,null,null,null,null,null,"Status: "]
[null,null,null,"einheitliche Farben für Felder die automatisch berechnet werden, bzw. Felder die einen Eintrag möglich/erforderlich ist",null,null,null,null,null,null,null,null,null,null,null,null,null,null,"Verwendungszweck:"]
[null,null,null,"Erklärung für div. Felder nötig. - Generell Sollte es eine kleine Workflow / Ablauferklärung in einer ersten Seite mit allg. Hinweisen geben. ",null,null,null,null,null,null,null,null,null,null,null,null,null,null,"Zahlungsdatum:"]
[null,null,null,"\"Warnung\" bei Einnahmen und Ausgaben vice versa in Ist-Kasse und Ist-Normal",null,null,null,null,null,null,null,null,null,null,null,null,null,null,"Zahlungsform"]
[null,null,null,"Generelle Fehlermeldung / Debugging \"verschönern\"",null,null,null,null,null,null,null,null,null,null,null,null,null,null,"Zeile"]
[null,null,null,"Tabellenschutz",null,null,null,null,null,null,null,null,null,null,null,null,null,null,"Zusage vom:"]
[null,null,null,"Einnahmenart darf nicht leer sein, wenn ein Wert angegegben ist, sonst Fehlermeldung. "]
[null,null,null,"Entfernen der dynmaischen Einnahmen und ausgaben listen"]
[]
[]
[]
[]
[]
[null,null,"Versionhistorie","Bearbeitert:","das wurde gefixt:"]
[null,null,"0.85","Jann","Fix: Fehler-Feld immer rot."]
[null,null,"0.86","Jann","Fix: Drop-Down-Felder werden nicht aktualisiert."]
[null,null,"0.87","Jann","div. Felder / Spalten mit der richtrigen Formatierung vorbelegt (Datum / Währung / Text /…)"]
[null,null,"0.88","Jann","Bei leeren Gruppennamen keine Summenbildung schwebende Einnahmen"]
[null,null,null,"Jann","kl. Verbesserung Dropdown Bildung, \"Typenfehler\""]
[null,null,null,"Jann","Fehler-Rot bei bewilligten / In Aussicht gestellten mitteln ohne Eintrag in beantragt / In Aussicht gestellt"]
[null,null,"0.89","Jann","Zellbezüge in Summe Finanzübersicht korrigiert W30 - 50 "]
[null,null,"0.90","Jann","Zellbezüge in Summe Finanzübersicht korrigiert W30 - 50 Summe offen, Zellbezüge relativ gestaltet"]
[null,null,"0.91","Jann","fix relativer Bezüge zur ETF-Datei…"]
[null,null,"0.92","Jann","Neue Spalten in C2: abgerufen, eingegangen + %-Berechnung und Formatierungen…"]
[null,null,"0.93","Jann","Fix Spaltenversatz in Finanz-Übersicht: Schwebende Einnahmen. "]
[null,null,"0.94","Martin","Seitenbereiche festgelegt, um späteres Drucker der PDF-Dateien zu erleichter sowie Tabelle-Interna ans Ende verschoben."]
[null,null,"0.95","Jann","Fix der in Version 0.94 hinzugefügten Spalte. "]
[null,null,"0.96","Jann","Änderung der Farbe bzgl. Fehlererkennung. Diese ist nun 255,1,1 statt 255,0,0. Dies soll helfen, die Warhscheinlichkeit einer zufälligen Zellmarkierung in diesem Farbton als Fehler zu zählen. --> Keine Optimale Lösung. Richtig."]
[null,null,"0.97","Jann","Neue Spalte Einnahmenart "]
[null,null,"0.971","Martin/Sarah","Zeile 63 im B. Finanz Übersicht haben wir ersatzlos gestrichen"]
[null,null,null,"Martin/Sarah","in Zeile 59/60 möchten wir zwei Summen sehen - nämlich die der schwebenden und der sicheren Einnahmen. Das haben wir schon erledigt. "]
[null,null,"0.98","Jann","Tabellenschutz des Tabellen-Interna-Blattes \"FoBuCo\" (muss jedes mal vor dem produktiv speichern aktiviert werden.)\n"]
[null,null,null,"Jann","Ändern der auswählbaren Kostenarten (Ein und Aus) auf den Stand vom 2020-08-09"]
[null,null,null,"Jann","Bereiche Beispielein- und ausgaben in vorgegebene  \"Einnahmenkategorien\" und \"Ausgabenkategorien\" umbenannt. "]
[null,null,null,"Jann","ListeEinnahmenkategorien sowie ausgaben sind damit außer Funktion"]
[null,null,null,"Jann","Datenüberprüfungsliste B Ausgaben, B Einnahmen, C1C und C2F auf die neuen Listen geändert. "]

{"sheet":"E.1 Sub-FüBuCos","index":7,"n_rows":50,"n_cols":28,"rows_kept":50,"cut":false,"hidden":false,"merged":[[1,5,1,14],[1,18,1,27]]}
[]
[null,null,null,null,null,"Werte aus Tabellen (Ergebnisspalte)",null,null,null,null,null,null,null,null,null,null,null,null,"Zellen"]
[null,null,null,null,"Summe",{"$f":"SUM(F7:F51)","v":0},{"$f":"SUM(G7:G51)","v":200},0,0,0,0,0,0,0,0,null,null,null,{"$f":"SUM(S7:S51)","v":0},{"$f":"SUM(T7:T51)","v":0},0,0,0,0,0,0,0,0]
[null,null,null,null,"Tabellenblatt","C.1. Planung Ausgaben","C.1. Planung Ausgaben",null,null,null,null,null,null,null,null,null,null,"Blatt"]
[null,null,null,null,"Tabelle","Tabelle35","Tabelle35"]
[null,null,"Pfad",null,"Spalte","Belegdatum","Gesamtkosten: ",null,null,null,null,null,null,null,null,null,null,"Zelle"]
[null,null,"C:\\temp\\Test01.xlsm",{"$f":"IF(C7<>\"\",HYPERLINK(C7,\"<-\"),\"\")","v":"<-"},null,"Not Found.",200,null,null,null,null,null,null,null,null,{"$f":"\" \"","v":" "},{"$f":"C7","v":"C:\\temp\\Test01.xlsm"},{"$f":"IF(Q7<>\"\",HYPERLINK(Q7,\"<-\"),\"\")","v":"<-"}]
[null,null,"C:\\temp\\FöBuCo-Test.xlsm",{"$f":"IF(C8<>\"\",HYPERLINK(C8,\"<-\"),\"\")","v":"<-"},null,"Not Found.",0,null,null,null,null,null,null,null,null,{"$f":"\" \"","v":" "},null,{"$f":"IF(Q8<>\"\",HYPERLINK(Q8,\"<-\"),\"\")","v":""}]
[null,null,null,"",null,null,null,null,null,null,null,null,null,null,null," ",null,""]
[null,null,null,"",null,null,null,null,null,null,null,null,null,null,null," ",null,""]
[null,null,null,"",null,null,null,null,null,null,null,null,null,null,null," ",null,""]
[null,null,null,"",null,null,null,null,null,null,null,null,null,null,null," ",null,""]
[null,null,null,"",null,null,null,null,null,null,null,null,null,null,null," ",null,""]
[null,null,null,"",null,null,null,null,null,null,null,null,null,null,null," ",null,""]
[null,null,null,"",null,null,null,null,null,null,null,null,null,null,null," ",null,""]
[null,null,null,"",null,null,null,null,null,null,null,null,null,null,null," ",null,""]
[null,null,null,"",null,null,null,null,null,null,null,null,null,null,null," ",null,""]
[null,null,null,"",null,null,null,null,null,null,null,null,null,null,null," ",null,""]
[null,null,null,"",null,null,null,null,null,null,null,null,null,null,null," ",null,""]
[null,null,null,"",null,null,null,null,null,null,null,null,null,null,null," ",null,""]
[null,null,null,"",null,null,null,null,null,null,null,null,null,null,null," ",null,""]
[null,null,null,"",null,null,null,null,null,null,null,null,null,null,null," ",null,""]
[null,null,null,"",null,null,null,null,null,null,null,null,null,null,null," ",null,""]
[null,null,null,"",null,null,null,null,null,null,null,null,null,null,null," ",null,""]
[null,null,null,"",null,null,null,null,null,null,null,null,null,null,null," ",null,""]
[null,null,null,"",null,null,null,null,null,null,null,null,null,null,null," ",null,""]
[null,null,null,"",null,null,null,null,null,null,null,null,null,null,null," ",null,""]
[null,null,null,"",null,null,null,null,null,null,null,null,null,null,null," ",null,""]
[null,null,null,"",null,null,null,null,null,null,null,null,null,null,null," ",null,""]
[null,null,null,"",null,null,null,null,null,null,null,null,null,null,null," ",null,""]
[null,null,null,"",null,null,null,null,null,null,null,null,null,null,null," ",null,""]
[null,null,null,"",null,null,null,null,null,null,null,null,null,null,null," ",null,""]
[null,null,null,"",null,null,null,null,null,null,null,null,null,null,null," ",null,""]
[null,null,null,"",null,null,null,null,null,null,null,null,null,null,null," ",null,""]
[null,null,null,"",null,null,null,null,null,null,null,null,null,null,null," ",null,""]
[null,null,null,"",null,null,null,null,null,null,null,null,null,null,null," ",null,""]
[null,null,null,"",null,null,null,null,null,null,null,null,null,null,null," ",null,""]
[null,null,null,"",null,null,null,null,null,null,null,null,null,null,null," ",null,""]
[null,null,null,"",null,null,null,null,null,null,null,null,null,null,null," ",null,""]
[null,null,null,"",null,null,null,null,null,null,null,null,null,null,null," ",null,""]
[null,null,null,"",null,null,null,null,null,null,null,null,null,null,null," ",null,""]
[null,null,null,"",null,null,null,null,null,null,null,null,null,null,null," ",null,""]
[null,null,null,{"$f":"IF(C43<>\"\",HYPERLINK(C43,\"<-\"),\"\")","v":""},null,null,null,null,null,null,null,null,null,null,null," ",null,{"$f":"IF(Q43<>\"\",HYPERLINK(Q43,\"<-\"),\"\")","v":""}]
[null,null,null,"",null,null,null,null,null,null,null,null,null,null,null," ",null,""]
[null,null,null,"",null,null,null,null,null,null,null,null,null,null,null," ",null,""]
[null,null,null,"",null,null,null,null,null,null,null,null,null,null,null," ",null,""]
[null,null,null,"",null,null,null,null,null,null,null,null,null,null,null," ",null,""]
[null,null,null,"",null,null,null,null,null,null,null,null,null,null,null," ",null,""]
[null,null,null,"",null,null,null,null,null,null,null,null,null,null,null," ",null,""]
[null,null,null,"",null,null,null,null,null,null,null,null,null,null,null," ",null,""]